[Event "*** Titled Tuesday Blitz"]
[Site "Chess.com"]
[Date "2019.11.05"]
[Round "10"]
[White "deBaller"]
[Black "Alopekos"]
[Result "1-0"]
[WhiteElo "2364"]
[BlackElo "2448"]
[TimeControl "180+2"]
[EndTime "15:18:27 PST"]
[Termination "deBaller won by checkmate"]

1. e4 {[%clk 0:03:01.9]} 1... c5 {[%clk 0:02:59.8]} 2. Nf3 {[%clk 0:03:02.2]}
2... e6 {[%clk 0:02:59.7]} 3. c3 {[%clk 0:03:02.9]} 3... Nf6 {[%clk 0:02:51.1]}
4. e5 {[%clk 0:03:03.9]} 4... Nd5 {[%clk 0:02:52.1]} 5. d4 {[%clk 0:03:05.5]}
5... cxd4 {[%clk 0:02:51.9]} 6. cxd4 {[%clk 0:03:06.3]} 6... d6 {[%clk
0:02:53.3]} 7. Bc4 {[%clk 0:03:07.2]} 7... Nc6 {[%clk 0:02:52.1]} 8. O-O {[%clk
0:03:07.1]} 8... Be7 {[%clk 0:02:24.7]} 9. Qe2 {[%clk 0:03:01.7]} 9... O-O
{[%clk 0:02:19]} 10. Re1 {[%clk 0:03:01.7]} 10... Qb6 {[%clk 0:01:59]} 11. Qe4
{[%clk 0:02:45.4]} 11... dxe5 {[%clk 0:01:02.7]} 12. dxe5 {[%clk 0:02:43.6]}
12... Rd8 {[%clk 0:01:02.9]} 13. a3 {[%clk 0:02:37.4]} 13... Bd7 {[%clk
0:00:38.3]} 14. Bd3 {[%clk 0:02:17.7]} 14... g6 {[%clk 0:00:38.5]} 15. h4 {[%clk
0:02:11.1]} 15... Be8 {[%clk 0:00:30.3]} 16. h5 {[%clk 0:02:09.6]} 16... Na5
{[%clk 0:00:19.6]} 17. hxg6 {[%clk 0:01:59.9]} 17... hxg6 {[%clk 0:00:21.5]} 18.
Bg5 {[%clk 0:01:35.2]} 18... Nb3 {[%clk 0:00:06]} 19. Qh4 {[%clk 0:01:29.9]}
19... Qc7 {[%clk 0:00:04]} 20. Ra2 {[%clk 0:01:11.5]} 20... Nc5 {[%clk
0:00:03.6]} 21. Bc4 {[%clk 0:01:07.3]} 21... Nb6 {[%clk 0:00:03.2]} 22. Bf6
{[%clk 0:01:02.2]} 22... Nxc4 {[%clk 0:00:02]} 23. Qh8# {[%clk 0:01:01.6]} 1-0

[Event "*** Titled Tuesday Blitz"]
[Site "Chess.com"]
[Date "2019.11.05"]
[Round "10"]
[White "ChessBitl"]
[Black "GelmanAlexander"]
[Result "1-0"]
[WhiteElo "2381"]
[BlackElo "2508"]
[TimeControl "180+2"]
[EndTime "15:18:44 PST"]
[Termination "ChessBitl won by resignation"]

1. e4 {[%clk 0:02:59.4]} 1... c5 {[%clk 0:02:58.5]} 2. Nf3 {[%clk 0:03:00.1]}
2... e6 {[%clk 0:02:59.2]} 3. d4 {[%clk 0:03:00.8]} 3... cxd4 {[%clk 0:03:00.5]}
4. Nxd4 {[%clk 0:03:02]} 4... d6 {[%clk 0:03:01.6]} 5. c4 {[%clk 0:03:03.3]}
5... b6 {[%clk 0:03:02.4]} 6. Nc3 {[%clk 0:03:04.7]} 6... Bb7 {[%clk 0:03:03.8]}
7. Be3 {[%clk 0:03:05.7]} 7... Nf6 {[%clk 0:03:05.4]} 8. f3 {[%clk 0:03:06.7]}
8... a6 {[%clk 0:03:06.9]} 9. Qd2 {[%clk 0:03:07.6]} 9... Nbd7 {[%clk
0:03:08.6]} 10. Be2 {[%clk 0:03:08.7]} 10... Rc8 {[%clk 0:03:10.2]} 11. O-O
{[%clk 0:03:09.8]} 11... h6 {[%clk 0:03:10.2]} 12. Rfd1 {[%clk 0:03:10.4]} 12...
Rg8 {[%clk 0:03:11.4]} 13. Rac1 {[%clk 0:03:06.5]} 13... g5 {[%clk 0:03:12.5]}
14. h3 {[%clk 0:03:05.1]} 14... Be7 {[%clk 0:03:07.1]} 15. b4 {[%clk 0:03:04.7]}
15... Nh5 {[%clk 0:02:17.7]} 16. Nb3 {[%clk 0:02:54.6]} 16... Nf4 {[%clk
0:02:12.1]} 17. Bf1 {[%clk 0:02:54]} 17... h5 {[%clk 0:02:02.4]} 18. Qd4 {[%clk
0:02:20.3]} 18... Qc7 {[%clk 0:01:24.3]} 19. Na4 {[%clk 0:02:15.4]} 19... Rb8
{[%clk 0:00:48.5]} 20. Nxb6 {[%clk 0:01:48]} 20... e5 {[%clk 0:00:44.1]} 21. Qd2
{[%clk 0:00:59.9]} 21... Nxb6 {[%clk 0:00:43.6]} 22. c5 {[%clk 0:00:58.8]} 22...
dxc5 {[%clk 0:00:43]} 23. bxc5 {[%clk 0:00:52.8]} 23... Nc8 {[%clk 0:00:32.1]}
24. c6 {[%clk 0:00:53]} 24... Ba8 {[%clk 0:00:28.1]} 25. Qd7+ {[%clk 0:00:50.6]}
1-0

[Event "*** Titled Tuesday Blitz"]
[Site "Chess.com"]
[Date "2019.11.05"]
[Round "10"]
[White "Keaton87"]
[Black "temus_galaktionov"]
[Result "0-1"]
[WhiteElo "2585"]
[BlackElo "2700"]
[TimeControl "180+2"]
[EndTime "15:18:45 PST"]
[Termination "temus_galaktionov won by resignation"]

1. d4 {[%clk 0:03:01.9]} 1... c6 {[%clk 0:03:01.5]} 2. Nf3 {[%clk 0:02:59.1]}
2... g6 {[%clk 0:03:03.4]} 3. e4 {[%clk 0:02:57.4]} 3... Bg7 {[%clk 0:03:05.3]}
4. Nc3 {[%clk 0:02:57.4]} 4... d6 {[%clk 0:03:06.9]} 5. a4 {[%clk 0:02:58]} 5...
Nd7 {[%clk 0:03:07.4]} 6. Be3 {[%clk 0:02:52.2]} 6... e5 {[%clk 0:03:07.3]} 7.
Be2 {[%clk 0:02:51.6]} 7... Ngf6 {[%clk 0:03:06.2]} 8. h3 {[%clk 0:02:51.7]}
8... O-O {[%clk 0:03:06.3]} 9. O-O {[%clk 0:02:52.4]} 9... Qe7 {[%clk
0:03:06.4]} 10. dxe5 {[%clk 0:02:44.1]} 10... dxe5 {[%clk 0:03:06.1]} 11. a5
{[%clk 0:02:45.4]} 11... Nc5 {[%clk 0:03:04.9]} 12. Nd2 {[%clk 0:02:43.6]} 12...
Rd8 {[%clk 0:03:03.5]} 13. Qc1 {[%clk 0:02:42.9]} 13... Ne6 {[%clk 0:02:43.6]}
14. Nc4 {[%clk 0:02:41.1]} 14... Nd4 {[%clk 0:02:42.7]} 15. Bd3 {[%clk
0:02:39.9]} 15... Nh5 {[%clk 0:02:40.3]} 16. Ne2 {[%clk 0:02:36]} 16... Ne6
{[%clk 0:02:34.2]} 17. g3 {[%clk 0:02:29.3]} 17... Nc5 {[%clk 0:02:29.1]} 18.
Bxc5 {[%clk 0:02:27.3]} 18... Qxc5 {[%clk 0:02:31]} 19. Kg2 {[%clk 0:02:28.5]}
19... f5 {[%clk 0:02:26.6]} 20. Qe3 {[%clk 0:02:23.5]} 20... Qe7 {[%clk
0:02:22.3]} 21. exf5 {[%clk 0:02:23.5]} 21... gxf5 {[%clk 0:02:21]} 22. g4
{[%clk 0:02:11.3]} 22... fxg4 {[%clk 0:02:16.3]} 23. hxg4 {[%clk 0:02:10.5]}
23... Bxg4 {[%clk 0:02:09.1]} 24. Rh1 {[%clk 0:02:10.1]} 24... e4 {[%clk
0:02:03.6]} 25. Bxe4 {[%clk 0:01:46.8]} 25... Bxe2 {[%clk 0:02:01.8]} 26. Bxh7+
{[%clk 0:01:47.5]} 26... Kf8 {[%clk 0:01:59.2]} 27. Qxe7+ {[%clk 0:01:39.8]}
27... Kxe7 {[%clk 0:02:01.1]} 28. Rae1 {[%clk 0:01:40.3]} 28... Nf4+ {[%clk
0:01:58.2]} 29. Kg3 {[%clk 0:01:41.4]} 29... Kf8 {[%clk 0:01:56]} 30. Ne3 {[%clk
0:01:29.2]} 30... Be5 {[%clk 0:01:53.8]} 31. Ng4 {[%clk 0:01:18.2]} 31... Bc7
{[%clk 0:01:51.6]} 32. Kh4 {[%clk 0:01:14.1]} 32... Kg7 {[%clk 0:01:48.7]} 33.
Kg5 {[%clk 0:01:14]} 33... Ne6+ {[%clk 0:01:35.7]} 34. Kf5 {[%clk 0:01:11.5]}
34... Nd4+ {[%clk 0:01:03.3]} 35. Kg5 {[%clk 0:01:04.1]} 35... Nf3+ {[%clk
0:01:00.7]} 36. Kf5 {[%clk 0:01:02.4]} 36... Rd5+ {[%clk 0:00:56.9]} 37. Ke4
{[%clk 0:00:53.9]} 37... Re8+ {[%clk 0:00:53.8]} 0-1

[Event "*** Titled Tuesday Blitz"]
[Site "Chess.com"]
[Date "2019.11.05"]
[Round "10"]
[White "NTBT_DHS"]
[Black "GrandGlacier"]
[Result "1-0"]
[WhiteElo "2673"]
[BlackElo "2533"]
[TimeControl "180+2"]
[EndTime "15:18:46 PST"]
[Termination "NTBT_DHS won by resignation"]

1. d4 {[%clk 0:02:59.9]} 1... Nf6 {[%clk 0:02:59.9]} 2. Nc3 {[%clk 0:03:01.8]}
2... d5 {[%clk 0:03:00]} 3. Bg5 {[%clk 0:03:02.8]} 3... Nbd7 {[%clk 0:03:00.6]}
4. f3 {[%clk 0:03:04.1]} 4... e6 {[%clk 0:03:00.2]} 5. e4 {[%clk 0:03:05.3]}
5... h6 {[%clk 0:02:58.7]} 6. Bh4 {[%clk 0:03:04.4]} 6... Be7 {[%clk 0:02:51.2]}
7. e5 {[%clk 0:03:04.4]} 7... Nh5 {[%clk 0:02:51.5]} 8. Bxe7 {[%clk 0:03:03.3]}
8... Qxe7 {[%clk 0:02:52]} 9. Nge2 {[%clk 0:03:00.7]} 9... a6 {[%clk 0:02:39.1]}
10. h4 {[%clk 0:02:53.6]} 10... g6 {[%clk 0:02:29.6]} 11. g4 {[%clk 0:02:53.7]}
11... Ng7 {[%clk 0:02:29.9]} 12. Qd2 {[%clk 0:02:50.5]} 12... c5 {[%clk
0:02:27.4]} 13. O-O-O {[%clk 0:02:47.3]} 13... b5 {[%clk 0:02:20.2]} 14. Qe3
{[%clk 0:02:41.7]} 14... Bb7 {[%clk 0:02:19.4]} 15. Ng3 {[%clk 0:02:28.9]} 15...
Bc6 {[%clk 0:02:09.3]} 16. Kb1 {[%clk 0:02:22]} 16... b4 {[%clk 0:02:09.9]} 17.
Nce2 {[%clk 0:02:23]} 17... Bb5 {[%clk 0:02:08.8]} 18. f4 {[%clk 0:02:11.5]}
18... h5 {[%clk 0:02:03.8]} 19. f5 {[%clk 0:02:11.7]} 19... hxg4 {[%clk
0:01:28.9]} 20. f6 {[%clk 0:02:00.4]} 20... Nxf6 {[%clk 0:01:29.9]} 21. exf6
{[%clk 0:02:02.3]} 21... Qxf6 {[%clk 0:01:30.6]} 22. dxc5 {[%clk 0:02:00.5]}
22... Rxh4 {[%clk 0:00:56.1]} 23. Rxh4 {[%clk 0:01:55.8]} 23... Qxh4 {[%clk
0:00:58]} 24. Qe5 {[%clk 0:01:50.6]} 24... Kf8 {[%clk 0:00:55.4]} 25. Nd4 {[%clk
0:01:33.2]} 25... Bxf1 {[%clk 0:00:32.2]} 26. Rxf1 {[%clk 0:01:35.1]} 26... Nf5
{[%clk 0:00:32.7]} 27. Ndxf5 {[%clk 0:01:20.9]} 27... gxf5 {[%clk 0:00:28.8]}
28. Rh1 {[%clk 0:01:21.6]} 28... Qxh1+ {[%clk 0:00:22.3]} 29. Nxh1 {[%clk
0:01:23.5]} 29... Ke7 {[%clk 0:00:22]} 30. Ng3 {[%clk 0:01:23.9]} 30... Rg8
{[%clk 0:00:19.1]} 31. Nxf5+ {[%clk 0:01:24.6]} 31... Ke8 {[%clk 0:00:16.7]} 32.
Qb8+ {[%clk 0:01:22.6]} 32... Kd7 {[%clk 0:00:17.8]} 33. Qb7+ {[%clk 0:01:23]}
33... Kd8 {[%clk 0:00:16.6]} 34. Qe7+ {[%clk 0:01:21.4]} 34... Kc8 {[%clk
0:00:17.1]} 35. Nd6+ {[%clk 0:01:23.3]} 1-0

[Event "*** Titled Tuesday Blitz"]
[Site "Chess.com"]
[Date "2019.11.05"]
[Round "10"]
[White "mikhaillushenkov"]
[Black "ehrenfeld"]
[Result "1/2-1/2"]
[WhiteElo "2691"]
[BlackElo "2542"]
[TimeControl "180+2"]
[EndTime "15:18:49 PST"]
[Termination "Game drawn by repetition"]

1. Nf3 {[%clk 0:03:01.9]} 1... d5 {[%clk 0:02:52.7]} 2. c4 {[%clk 0:03:03.8]}
2... d4 {[%clk 0:02:51.6]} 3. e3 {[%clk 0:02:46.6]} 3... dxe3 {[%clk 0:02:36.6]}
4. fxe3 {[%clk 0:02:47.6]} 4... g6 {[%clk 0:02:33.5]} 5. d4 {[%clk 0:02:42.2]}
5... Bg7 {[%clk 0:02:34.2]} 6. Nc3 {[%clk 0:02:43]} 6... Nf6 {[%clk 0:02:29.1]}
7. Bd3 {[%clk 0:02:43.4]} 7... O-O {[%clk 0:02:29.6]} 8. O-O {[%clk 0:02:43.4]}
8... c5 {[%clk 0:02:30.5]} 9. d5 {[%clk 0:02:44.4]} 9... Bg4 {[%clk 0:02:21.4]}
10. e4 {[%clk 0:02:41.3]} 10... Nfd7 {[%clk 0:02:22]} 11. h3 {[%clk 0:02:36]}
11... Bxf3 {[%clk 0:02:22.5]} 12. gxf3 {[%clk 0:02:37.9]} 12... Bd4+ {[%clk
0:02:10.2]} 13. Kg2 {[%clk 0:02:38.2]} 13... e5 {[%clk 0:02:10.9]} 14. Bh6
{[%clk 0:02:22.2]} 14... Nf6 {[%clk 0:01:27.2]} 15. Bxf8 {[%clk 0:02:14.2]}
15... Kxf8 {[%clk 0:01:22.4]} 16. Ne2 {[%clk 0:02:15.5]} 16... Nh5 {[%clk
0:01:22]} 17. Nxd4 {[%clk 0:02:13.7]} 17... Qg5+ {[%clk 0:00:55.2]} 18. Kf2
{[%clk 0:02:12.2]} 18... cxd4 {[%clk 0:00:54.4]} 19. Ke1 {[%clk 0:01:51.7]}
19... Nf4 {[%clk 0:00:51.7]} 20. Qd2 {[%clk 0:01:50.8]} 20... Nd7 {[%clk
0:00:48.6]} 21. b4 {[%clk 0:01:51.2]} 21... a5 {[%clk 0:00:49.3]} 22. Kd1 {[%clk
0:01:48.5]} 22... axb4 {[%clk 0:00:49.2]} 23. Qxb4+ {[%clk 0:01:50.4]} 23... Kg7
{[%clk 0:00:48.6]} 24. Qd2 {[%clk 0:01:49.2]} 24... Nc5 {[%clk 0:00:48.6]} 25.
Bc2 {[%clk 0:01:36.3]} 25... d3 {[%clk 0:00:44.3]} 26. Bb1 {[%clk 0:01:18.7]}
26... Nb3 {[%clk 0:00:44.6]} 27. axb3 {[%clk 0:01:20.6]} 27... Rxa1 {[%clk
0:00:44.7]} 28. Qb2 {[%clk 0:01:22.1]} 28... Rxb1+ {[%clk 0:00:31.2]} 29. Qxb1
{[%clk 0:01:23]} 29... Qg2 {[%clk 0:00:30.4]} 30. Re1 {[%clk 0:01:23.3]} 30...
Qxf3+ {[%clk 0:00:27.8]} 31. Kd2 {[%clk 0:01:22.4]} 31... Qf2+ {[%clk
0:00:28.3]} 32. Kc3 {[%clk 0:01:21.7]} 32... Qd4+ {[%clk 0:00:29.2]} 33. Kd2
{[%clk 0:01:21.1]} 33... Qf2+ {[%clk 0:00:21.1]} 34. Kc3 {[%clk 0:01:22.2]}
34... Qd4+ {[%clk 0:00:18.5]} 35. Kd2 {[%clk 0:01:20.3]} 35... Qf2+ {[%clk
0:00:18.8]} 1/2-1/2

[Event "*** Titled Tuesday Blitz"]
[Site "Chess.com"]
[Date "2019.11.05"]
[Round "10"]
[White "vladimirdamjanovic"]
[Black "RiskyDecision"]
[Result "1-0"]
[WhiteElo "2600"]
[BlackElo "2505"]
[TimeControl "180+2"]
[EndTime "15:18:56 PST"]
[Termination "vladimirdamjanovic won by resignation"]

1. e4 {[%clk 0:03:01.9]} 1... e6 {[%clk 0:02:58.9]} 2. d4 {[%clk 0:03:02.3]}
2... d5 {[%clk 0:03:00.1]} 3. Nc3 {[%clk 0:03:03.7]} 3... dxe4 {[%clk
0:02:58.5]} 4. Nxe4 {[%clk 0:03:04.8]} 4... Nd7 {[%clk 0:03:00]} 5. Nf3 {[%clk
0:03:05]} 5... Ngf6 {[%clk 0:03:01.3]} 6. Nxf6+ {[%clk 0:03:06.4]} 6... Nxf6
{[%clk 0:03:02]} 7. Bg5 {[%clk 0:03:07.1]} 7... h6 {[%clk 0:03:02.1]} 8. Bh4
{[%clk 0:03:07.4]} 8... c5 {[%clk 0:03:02.4]} 9. Bb5+ {[%clk 0:03:08]} 9... Bd7
{[%clk 0:03:03.1]} 10. Bxd7+ {[%clk 0:03:09.5]} 10... Qxd7 {[%clk 0:03:04.2]}
11. Qe2 {[%clk 0:03:10.8]} 11... Be7 {[%clk 0:03:04.3]} 12. O-O-O {[%clk
0:03:10.7]} 12... O-O {[%clk 0:03:05.7]} 13. dxc5 {[%clk 0:03:10.1]} 13... Qc6
{[%clk 0:03:07.1]} 14. Ne5 {[%clk 0:03:01.4]} 14... Qxc5 {[%clk 0:03:08]} 15.
Kb1 {[%clk 0:02:57]} 15... Rfd8 {[%clk 0:03:02.1]} 16. Bxf6 {[%clk 0:02:40.5]}
16... Bxf6 {[%clk 0:03:02.5]} 17. Nd7 {[%clk 0:02:37.5]} 17... Qe7 {[%clk
0:03:03.1]} 18. Nxf6+ {[%clk 0:02:37.2]} 18... Qxf6 {[%clk 0:03:04.3]} 19. f3
{[%clk 0:02:24.5]} 19... Qf4 {[%clk 0:02:42.8]} 20. g3 {[%clk 0:02:22]} 20...
Qf5 {[%clk 0:02:41.2]} 21. f4 {[%clk 0:02:18.8]} 21... h5 {[%clk 0:02:38.9]} 22.
b3 {[%clk 0:02:08.9]} 22... b5 {[%clk 0:02:34.1]} 23. Rxd8+ {[%clk 0:02:02.1]}
23... Rxd8 {[%clk 0:02:33.9]} 24. Rd1 {[%clk 0:02:03.5]} 24... Rxd1+ {[%clk
0:02:17.4]} 25. Qxd1 {[%clk 0:02:05.4]} 25... b4 {[%clk 0:02:17.3]} 26. Qd4
{[%clk 0:01:35]} 26... a5 {[%clk 0:02:16.7]} 27. Kb2 {[%clk 0:01:26.9]} 27...
Qh3 {[%clk 0:01:52.4]} 28. Qf2 {[%clk 0:01:07.4]} 28... Kh7 {[%clk 0:01:52.2]}
29. c4 {[%clk 0:01:06.6]} 29... bxc3+ {[%clk 0:01:50.3]} 30. Kxc3 {[%clk
0:01:08.5]} 30... Kg6 {[%clk 0:01:44.5]} 31. a3 {[%clk 0:01:07.7]} 31... h4
{[%clk 0:01:21.7]} 32. b4 {[%clk 0:01:06]} 32... axb4+ {[%clk 0:01:22.8]} 33.
axb4 {[%clk 0:01:07.9]} 33... Kh7 {[%clk 0:00:46.7]} 34. b5 {[%clk 0:01:03]}
34... hxg3 {[%clk 0:00:47.9]} 35. hxg3 {[%clk 0:01:00.4]} 35... Qh1 {[%clk
0:00:47.9]} 36. b6 {[%clk 0:00:54.3]} 36... Qc1+ {[%clk 0:00:49.1]} 37. Qc2+
{[%clk 0:00:53.6]} 1-0

[Event "*** Titled Tuesday Blitz"]
[Site "Chess.com"]
[Date "2019.11.05"]
[Round "10"]
[White "FairChess_on_YouTube"]
[Black "vugarrasulov"]
[Result "1-0"]
[WhiteElo "3021"]
[BlackElo "2789"]
[TimeControl "180+2"]
[EndTime "15:18:57 PST"]
[Termination "FairChess_on_YouTube won by checkmate"]

1. Nf3 {[%clk 0:03:01.9]} 1... c5 {[%clk 0:03:00.7]} 2. g3 {[%clk 0:03:02.2]}
2... g6 {[%clk 0:03:01.6]} 3. Bg2 {[%clk 0:03:00.4]} 3... Bg7 {[%clk 0:03:02.9]}
4. O-O {[%clk 0:03:00.3]} 4... Nc6 {[%clk 0:03:04.3]} 5. c4 {[%clk 0:02:59.7]}
5... e6 {[%clk 0:03:05.6]} 6. Nc3 {[%clk 0:02:58.5]} 6... Nge7 {[%clk
0:03:07.1]} 7. d4 {[%clk 0:02:58.2]} 7... cxd4 {[%clk 0:03:07.8]} 8. Nb5 {[%clk
0:02:59.2]} 8... O-O {[%clk 0:03:08.9]} 9. Nfxd4 {[%clk 0:02:58.3]} 9... Nxd4
{[%clk 0:03:10]} 10. Nxd4 {[%clk 0:02:58.9]} 10... d5 {[%clk 0:03:11.6]} 11.
cxd5 {[%clk 0:02:57.8]} 11... Nxd5 {[%clk 0:03:13.5]} 12. e4 {[%clk 0:02:53.4]}
12... Nb6 {[%clk 0:03:10]} 13. Nb5 {[%clk 0:02:52.2]} 13... Bd7 {[%clk
0:03:08.7]} 14. Qb3 {[%clk 0:02:41.8]} 14... a6 {[%clk 0:02:32.8]} 15. Nd6
{[%clk 0:02:33.1]} 15... Ba4 {[%clk 0:01:29.5]} 16. Qb4 {[%clk 0:02:32.9]} 16...
a5 {[%clk 0:01:24.9]} 17. Qa3 {[%clk 0:02:33.9]} 17... Bc6 {[%clk 0:01:21.5]}
18. Bf4 {[%clk 0:02:16]} 18... Na4 {[%clk 0:01:22.3]} 19. e5 {[%clk 0:02:06.8]}
19... Bxg2 {[%clk 0:01:14.8]} 20. Kxg2 {[%clk 0:02:08.7]} 20... Qd7 {[%clk
0:01:12.1]} 21. Rac1 {[%clk 0:02:06.1]} 21... b5 {[%clk 0:01:06]} 22. Rfd1
{[%clk 0:01:44.6]} 22... g5 {[%clk 0:01:06.6]} 23. Ne4 {[%clk 0:01:40.7]} 23...
Qb7 {[%clk 0:01:00.6]} 24. Qf3 {[%clk 0:01:41.2]} 24... Rab8 {[%clk 0:00:54.5]}
25. Bxg5 {[%clk 0:01:39]} 25... Nxb2 {[%clk 0:00:52.1]} 26. Bf6 {[%clk
0:01:29.1]} 26... Bxf6 {[%clk 0:00:52.2]} 27. Rd7 {[%clk 0:01:28.9]} 27... Qa8
{[%clk 0:00:44.7]} 28. exf6 {[%clk 0:01:11.9]} 28... Kh8 {[%clk 0:00:45.1]} 29.
Rc5 {[%clk 0:01:05.6]} 29... Rbd8 {[%clk 0:00:33.8]} 30. Rh5 {[%clk 0:01:05.2]}
30... Rxd7 {[%clk 0:00:19.1]} 31. Rxh7+ {[%clk 0:01:05.7]} 31... Kg8 {[%clk
0:00:19.3]} 32. Rg7+ {[%clk 0:01:05.4]} 32... Kh8 {[%clk 0:00:20.5]} 33. Qh5#
{[%clk 0:01:05.8]} 1-0

[Event "*** Titled Tuesday Blitz"]
[Site "Chess.com"]
[Date "2019.11.05"]
[Round "10"]
[White "cool4chess"]
[Black "chito89"]
[Result "1-0"]
[WhiteElo "2585"]
[BlackElo "2739"]
[TimeControl "180+2"]
[EndTime "15:19:06 PST"]
[Termination "cool4chess won by resignation"]

1. e4 {[%clk 0:03:01.9]} 1... c5 {[%clk 0:01:34.3]} 2. Nf3 {[%clk 0:03:01.3]}
2... e6 {[%clk 0:01:35.7]} 3. d4 {[%clk 0:03:02.3]} 3... cxd4 {[%clk 0:01:36.1]}
4. Nxd4 {[%clk 0:03:04.2]} 4... Nc6 {[%clk 0:01:37.5]} 5. Nc3 {[%clk 0:03:04]}
5... Qc7 {[%clk 0:01:38.7]} 6. Be2 {[%clk 0:03:04.9]} 6... a6 {[%clk 0:01:39.8]}
7. O-O {[%clk 0:03:05.1]} 7... Nf6 {[%clk 0:01:41.2]} 8. Kh1 {[%clk 0:03:06.5]}
8... Nxd4 {[%clk 0:01:37.1]} 9. Qxd4 {[%clk 0:03:08.4]} 9... b5 {[%clk 0:01:38]}
10. e5 {[%clk 0:03:05.5]} 10... Bc5 {[%clk 0:01:35]} 11. Qf4 {[%clk 0:03:04.6]}
11... b4 {[%clk 0:01:27.6]} 12. exf6 {[%clk 0:02:52.4]} 12... Qxf4 {[%clk
0:01:25.6]} 13. Bxf4 {[%clk 0:02:54.3]} 13... bxc3 {[%clk 0:01:26.9]} 14. fxg7
{[%clk 0:02:55.5]} 14... Rg8 {[%clk 0:01:28.1]} 15. Be5 {[%clk 0:02:46.2]} 15...
cxb2 {[%clk 0:01:27.8]} 16. Bxb2 {[%clk 0:02:42.6]} 16... Ke7 {[%clk 0:01:27.6]}
17. Bd3 {[%clk 0:02:34.7]} 17... f6 {[%clk 0:01:22.7]} 18. Bxh7 {[%clk
0:02:35.8]} 18... Rxg7 {[%clk 0:01:24.1]} 19. Be4 {[%clk 0:02:36.8]} 19... Rb8
{[%clk 0:01:24.5]} 20. Rab1 {[%clk 0:02:37.2]} 20... Kf7 {[%clk 0:01:08.5]} 21.
Bc3 {[%clk 0:02:32.6]} 21... Rxb1 {[%clk 0:01:07.3]} 22. Rxb1 {[%clk 0:02:34.5]}
22... d5 {[%clk 0:01:05.5]} 23. Bd3 {[%clk 0:02:33.2]} 23... Bxf2 {[%clk
0:01:02.7]} 24. Bxf6 {[%clk 0:02:24.9]} 24... Kxf6 {[%clk 0:00:49]} 25. Rf1
{[%clk 0:02:25.8]} 25... Ke5 {[%clk 0:00:47.2]} 26. Rxf2 {[%clk 0:02:25.6]}
26... Kd4 {[%clk 0:00:48.2]} 27. Rf8 {[%clk 0:02:24.1]} 27... Bb7 {[%clk
0:00:41.9]} 28. h4 {[%clk 0:02:24]} 28... Rg4 {[%clk 0:00:40.5]} 29. Rh8 {[%clk
0:02:19.5]} 29... e5 {[%clk 0:00:41.3]} 30. h5 {[%clk 0:02:08.5]} 30... Ke3
{[%clk 0:00:41.7]} 31. Bf5 {[%clk 0:02:03.3]} 31... Rh4+ {[%clk 0:00:29.6]} 32.
Kg1 {[%clk 0:02:03.9]} 32... e4 {[%clk 0:00:28.2]} 33. h6 {[%clk 0:02:03.8]}
33... Kd2 {[%clk 0:00:27.4]} 34. h7 {[%clk 0:02:02.4]} 34... e3 {[%clk
0:00:26.2]} 35. Bd3 {[%clk 0:01:56.8]} 35... d4 {[%clk 0:00:26.1]} 36. Re8
{[%clk 0:01:41.8]} 36... Be4 {[%clk 0:00:27.4]} 37. Rxe4 {[%clk 0:01:33.1]}
37... Rxe4 {[%clk 0:00:24]} 38. h8=Q {[%clk 0:01:31.9]} 38... e2 {[%clk
0:00:25.6]} 39. Qh6+ {[%clk 0:01:24.4]} 39... Re3 {[%clk 0:00:25.8]} 40. Bxe2
{[%clk 0:01:25.2]} 1-0

[Event "*** Titled Tuesday Blitz"]
[Site "Chess.com"]
[Date "2019.11.05"]
[Round "10"]
[White "Darhild"]
[Black "VincentKeymer"]
[Result "0-1"]
[WhiteElo "2678"]
[BlackElo "2584"]
[TimeControl "180+2"]
[EndTime "15:19:13 PST"]
[Termination "VincentKeymer won by resignation"]

1. e4 {[%clk 0:03:01.9]} 1... c6 {[%clk 0:02:59]} 2. Nc3 {[%clk 0:03:02.4]} 2...
d5 {[%clk 0:03:00.3]} 3. Nf3 {[%clk 0:03:04.3]} 3... Bg4 {[%clk 0:02:59.3]} 4.
h3 {[%clk 0:03:05.4]} 4... Bxf3 {[%clk 0:02:59.5]} 5. Qxf3 {[%clk 0:03:07.3]}
5... e6 {[%clk 0:03:00.8]} 6. Be2 {[%clk 0:03:07.9]} 6... Nd7 {[%clk 0:03:00.9]}
7. O-O {[%clk 0:03:07.9]} 7... Ngf6 {[%clk 0:03:01.8]} 8. Rd1 {[%clk 0:03:03.6]}
8... d4 {[%clk 0:02:56.8]} 9. Nb1 {[%clk 0:03:03.6]} 9... Bd6 {[%clk 0:02:55.6]}
10. g3 {[%clk 0:02:55.1]} 10... h5 {[%clk 0:02:54.9]} 11. d3 {[%clk 0:02:49.6]}
11... h4 {[%clk 0:02:53.7]} 12. g4 {[%clk 0:02:50.4]} 12... Qc7 {[%clk 0:02:49]}
13. Nd2 {[%clk 0:02:51.1]} 13... Ne5 {[%clk 0:02:47]} 14. Qg2 {[%clk 0:02:51.6]}
14... Ng6 {[%clk 0:02:47.2]} 15. Nc4 {[%clk 0:02:51.9]} 15... Bf4 {[%clk
0:02:48.1]} 16. e5 {[%clk 0:02:23.4]} 16... Bxe5 {[%clk 0:02:43.6]} 17. Nxe5
{[%clk 0:02:21.1]} 17... Qxe5 {[%clk 0:02:45.5]} 18. Bf3 {[%clk 0:02:21.8]}
18... Nf4 {[%clk 0:02:41.8]} 19. Bxf4 {[%clk 0:02:20.6]} 19... Qxf4 {[%clk
0:02:42.1]} 20. g5 {[%clk 0:02:00.3]} 20... Nd7 {[%clk 0:02:40]} 21. g6 {[%clk
0:01:59.5]} 21... Ne5 {[%clk 0:02:36.3]} 22. gxf7+ {[%clk 0:01:59.5]} 22... Kxf7
{[%clk 0:02:37.5]} 23. Be4 {[%clk 0:02:00.8]} 23... Rh5 {[%clk 0:02:32.8]} 24.
Qh2 {[%clk 0:02:00.5]} 24... Rg5+ {[%clk 0:02:33.2]} 25. Kh1 {[%clk 0:02:01.9]}
25... Qxh2+ {[%clk 0:02:21.5]} 26. Kxh2 {[%clk 0:02:03.8]} 26... Nd7 {[%clk
0:02:22.9]} 27. Rg1 {[%clk 0:02:02.2]} 27... Rxg1 {[%clk 0:02:20.3]} 28. Rxg1
{[%clk 0:02:04.1]} 28... Nf6 {[%clk 0:02:21.4]} 29. Rg5 {[%clk 0:02:01.9]} 29...
Rd8 {[%clk 0:02:14.9]} 30. Bg6+ {[%clk 0:02:02.6]} 30... Kf8 {[%clk 0:02:15]}
31. Re5 {[%clk 0:02:00]} 31... Ke7 {[%clk 0:02:15.3]} 32. Bf5 {[%clk 0:01:57.2]}
32... Rd6 {[%clk 0:02:16]} 33. Bg4 {[%clk 0:01:42.6]} 33... Nxg4+ {[%clk
0:02:09.5]} 34. hxg4 {[%clk 0:01:43.8]} 34... Rd5 {[%clk 0:02:10.7]} 35. Rxd5
{[%clk 0:01:27.1]} 35... cxd5 {[%clk 0:02:11.5]} 36. g5 {[%clk 0:01:25.5]} 36...
e5 {[%clk 0:02:06.2]} 37. Kh3 {[%clk 0:01:22.4]} 37... Ke6 {[%clk 0:02:07.5]}
38. Kxh4 {[%clk 0:00:55.7]} 38... Kf5 {[%clk 0:02:08.4]} 39. Kh5 {[%clk
0:00:49.8]} 39... b5 {[%clk 0:02:00.2]} 40. f3 {[%clk 0:00:47.8]} 40... a5
{[%clk 0:01:56.1]} 41. a3 {[%clk 0:00:17.8]} 41... a4 {[%clk 0:01:48.2]} 42. b4
{[%clk 0:00:19]} 42... axb3 {[%clk 0:01:43.7]} 43. cxb3 {[%clk 0:00:20.9]} 43...
e4 {[%clk 0:01:45.3]} 44. fxe4+ {[%clk 0:00:17.6]} 44... dxe4 {[%clk 0:01:46]}
45. dxe4+ {[%clk 0:00:16.5]} 45... Kxe4 {[%clk 0:01:46.9]} 46. Kg6 {[%clk
0:00:17.9]} 46... d3 {[%clk 0:01:48.1]} 47. Kxg7 {[%clk 0:00:19.6]} 47... d2
{[%clk 0:01:50]} 48. g6 {[%clk 0:00:21.2]} 48... d1=Q {[%clk 0:01:50.5]} 49. Kh7
{[%clk 0:00:23.1]} 49... Kf5 {[%clk 0:01:51.3]} 0-1